bitfinex-derivatives/quotes_BTCF0:USTF0_20250926
["timestamp","ask_amount","ask_price","bid_price","bid_amount"]
[1758891628734,0.1253681,109500.0,109490.0,0.38351]
[1758891629336,0.1263681,109500.0,109490.0,0.38351]
[1758891630040,0.1253765,109490.0,109480.0,0.38351]
[1758891630336,0.1253765,109490.0,109480.0,0.47483837]
[1758891630742,0.1253765,109490.0,109480.0,0.38351]
[1758891631337,0.01291,109480.0,109470.0,0.8642]
[1758891631536,0.1253848,109480.0,109470.0,0.02271]
[1758891631729,0.1243848,109480.0,109470.0,0.56612991]
[1758891632632,0.1253848,109480.0,109470.0,0.56612991]
[1758891632834,0.89823,109480.0,109470.0,0.47484671]
[1758891633043,0.9895048,109480.0,109470.0,0.47484671]
[1758891633238,0.9895048,109480.0,109470.0,0.38351]
[1758891633443,0.9895048,109480.0,109470.0,0.02271]
[1758891634039,0.1047515,109460.0,109450.0,0.38357]
[1758891634249,0.1260715,109460.0,109450.0,0.38357]
[1758891635446,0.4868715,109460.0,109450.0,0.02277]
[1758891635641,0.1260715,109460.0,109450.0,0.02277]
[1758891636045,0.1260803,109450.0,109440.0,0.38357]
[1758891636249,1.06394681,109450.0,109440.0,0.38357]
[1758891636451,0.1260887,109440.0,109430.0,0.38357]
[1758891636757,0.1260887,109440.0,109430.0,0.474887]
[1758891637549,0.01346,109440.0,109430.0,0.474887]
[1758891637849,0.1260888,109440.0,109430.0,0.474887]
[1758891638154,0.1047693,109440.0,109430.0,0.474887]
[1758891638351,0.0913093,109440.0,109430.0,0.474887]
[1758891638745,0.1260893,109440.0,109430.0,0.02277]
[1758891638953,0.1270893,109440.0,109430.0,0.4748876]
[1758891639853,0.03578,109440.0,109430.0,0.4748876]
[1758891640157,0.1270893,109440.0,109430.0,0.4748876]
[1758891641556,0.03578,109440.0,109430.0,0.4748876]
[1758891644460,0.03678,109440.0,109430.0,0.4748876]
[1758891644645,0.1280892,109440.0,109430.0,0.4748876]
[1758891645358,0.1280892,109440.0,109430.0,0.38357]
[1758891646650,0.1280892,109440.0,109430.0,0.4748876]
[1758891646856,0.03678,109440.0,109430.0,0.4748876]
[1758891647156,0.1280893,109440.0,109430.0,0.4748876]
[1758891649863,0.1280893,109440.0,109430.0,0.38357]
[1758891650455,0.1280893,109440.0,109430.0,0.4748876]
[1758891650761,0.9919693,109440.0,109430.0,0.4748876]
[1758891652662,0.9919693,109440.0,109430.0,0.38357]
[1758891653558,0.1280893,109440.0,109430.0,0.4748877]
[1758891653763,0.9918893,109440.0,109430.0,0.4748877]
[1758891654755,0.9005,109440.0,109430.0,0.4748877]
[1758891655458,0.9918093,109440.0,109430.0,0.4748877]
[1758891655763,0.9005,109440.0,109430.0,0.4748877]
[1758891655956,0.90054,109440.0,109430.0,0.4748877]
[1758891656559,0.03678,109440.0,109430.0,0.4748877]
[1758891656758,0.002,109440.0,109430.0,1.24337617]
[1758891657463,0.002,109440.0,109430.0,0.96626614]
[1758891657651,0.002,109440.0,109430.0,1.24337617]
[1758891658264,0.1280893,109440.0,109430.0,0.47494844]
[1758891658564,0.1280893,109440.0,109430.0,0.56626614]
[1758891659156,0.1280893,109440.0,109430.0,0.47494844]
[1758891659363,0.1280893,109440.0,109420.0,0.38357]
[1758891659364,0.1260977,109430.0,109420.0,0.38357]
[1758891659768,0.1260977,109430.0,109420.0,0.11414844]
[1758891660266,0.9896977,109430.0,109420.0,0.20547444]
[1758891660958,0.01346,109430.0,109420.0,0.21047444]
[1758891661158,0.1270947,109440.0,109430.0,0.1140877]
[1758891661562,0.9896547,109440.0,109430.0,0.1140877]
[1758891661762,0.1260893,109440.0,109430.0,0.4748877]
[1758891662064,0.9896493,109440.0,109430.0,0.4748877]
[1758891662456,0.9896493,109440.0,109430.0,0.1140877]
[1758891662661,0.9906493,109440.0,109430.0,0.1140877]
[1758891663058,1.01342386,109440.0,109430.0,0.1140877]
[1758891663459,1.37422386,109440.0,109430.0,0.02277]
[1758891663764,0.0913177,109430.0,109420.0,0.4521202]
[1758891663967,0.1254077,109430.0,109420.0,0.38385]
[1758891664164,0.1254077,109430.0,109420.0,0.56655444]
[1758891664966,0.1254077,109430.0,109420.0,0.47622844]
[1758891665268,0.1254077,109430.0,109420.0,0.57255444]
[1758891665565,0.1254077,109430.0,109420.0,0.21175444]
[1758891666467,0.1254077,109430.0,109420.0,0.02905]
[1758891666660,0.1254077,109430.0,109420.0,0.006]
[1758891666870,1.18510747,109430.0,109420.0,0.006]
[1758891667567,0.90799744,109430.0,109420.0,0.006]
[1758891667767,1.18510747,109430.0,109420.0,0.006]
[1758891668368,0.1271427,109400.0,109390.0,0.4734276]
[1758891668568,0.1271427,109400.0,109390.0,0.38208]
[1758891668871,0.1271427,109400.0,109390.0,0.56481789]
[1758891669070,0.0358,109400.0,109390.0,0.4734311]
[1758891669475,0.91992089,109410.0,109400.0,0.1126227]
[1758891669668,0.20184089,109410.0,109400.0,0.1126227]
[1758891669864,0.0358,109410.0,109400.0,0.4734227]
[1758891670065,0.9905709,109420.0,109410.0,0.1126144]
[1758891670266,0.1271309,109420.0,109410.0,0.1126144]
[1758891670666,0.0358,109420.0,109410.0,0.1126144]
[1758891670874,0.9902937,109430.0,109420.0,0.112606]
[1758891672276,0.9942937,109430.0,109420.0,0.112606]
[1758891672679,1.0152937,109430.0,109420.0,0.02128]
[1758891672875,1.3760937,109430.0,109420.0,0.02128]
[1758891673175,1.0152937,109430.0,109420.0,0.02128]
[1758891673375,1.0152937,109430.0,109420.0,0.473406]
[1758891673576,0.92393,109430.0,109420.0,0.473406]
[1758891673976,1.0152477,109430.0,109420.0,0.473406]
[1758891674674,1.0152477,109430.0,109420.0,0.112606]
[1758891674877,1.0152477,109430.0,109420.0,0.473406]
[1758891675465,0.1518477,109430.0,109420.0,0.873406]
[1758891675675,1.0152077,109430.0,109420.0,0.873406]
[1758891676274,1.0152077,109430.0,109420.0,0.78208]
[1758891676477,1.3760077,109430.0,109420.0,0.02128]
[1758891677676,1.0152077,109430.0,109420.0,0.02128]
[1758891677977,1.0152077,109430.0,109420.0,0.112606]
[1758891678175,1.0152077,109430.0,109420.0,0.02128]
[1758891678365,1.3760077,109430.0,109420.0,0.02128]
[1758891678874,1.0152077,109430.0,109420.0,0.473406]
[1758891679173,0.1518477,109430.0,109420.0,0.473406]
[1758891679377,0.025,109430.0,109420.0,0.879406]
[1758891679574,0.025,109430.0,109420.0,0.97079279]
[1758891680379,0.1163177,109430.0,109420.0,0.97079279]
[1758891680772,0.1163177,109430.0,109420.0,1.83407279]
[1758891681171,0.025,109430.0,109420.0,1.83407279]
[1758891682079,0.1163177,109430.0,109420.0,1.43407279]
[1758891682777,0.0913177,109430.0,109420.0,1.43407279]
[1758891682976,0.1053177,109430.0,109420.0,1.43407279]
[1758891683276,0.1053177,109430.0,109420.0,0.57079279]
[1758891683480,0.1301177,109430.0,109420.0,0.02128]
[1758891683677,0.1411177,109430.0,109420.0,0.02128]
[1758891683982,0.41822773,109430.0,109420.0,0.02128]
[1758891685083,0.1411177,109430.0,109420.0,0.02128]
[1758891685288,1.0042777,109430.0,109420.0,0.02128]
[1758891685477,1.0042777,109430.0,109420.0,0.1126062]
[1758891685478,0.1411177,109430.0,109420.0,0.1126062]
[1758891685879,0.1381177,109430.0,109420.0,0.1126062]
[1758891686079,0.1421177,109430.0,109420.0,0.1126062]
[1758891686278,0.1481177,109430.0,109420.0,0.1126062]
[1758891686479,0.1481177,109430.0,109420.0,0.02128]
[1758891688677,0.1481177,109430.0,109420.0,0.112606]
[1758891688884,1.0111577,109430.0,109420.0,0.112606]
[1758891689986,1.0111577,109430.0,109420.0,0.473406]
[1758891689987,0.91984,109430.0,109420.0,0.473406]
[1758891690187,1.0111577,109430.0,109420.0,0.112606]
[1758891691588,1.0111577,109430.0,109420.0,0.02128]
[1758891691995,1.0111577,109430.0,109420.0,0.1126062]
[1758891692882,1.3719577,109430.0,109420.0,0.02128]
[1758891693188,1.3719577,109430.0,109420.0,0.1126061]
[1758891693485,0.1275461,109420.0,109410.0,0.02116]
[1758891693675,0.1275544,109410.0,109400.0,0.44621483]
[1758891693879,1.26762443,109410.0,109400.0,0.44621483]
[1758891694080,0.9905144,109410.0,109400.0,0.44621483]
[1758891694588,0.9905144,109410.0,109400.0,0.53755833]
[1758891694786,0.9905144,109410.0,109400.0,0.44621483]
[1758891694981,0.9905144,109410.0,109400.0,0.53755833]
[1758891695181,0.03622,109410.0,109400.0,0.53755833]
[1758891695384,0.021,109430.0,109420.0,0.1184869]
[1758891695687,0.021,109430.0,109420.0,1.98011693]
[1758891695891,0.017,109430.0,109420.0,2.18419448]
[1758891696082,0.017,109430.0,109420.0,2.27559798]
[1758891696477,0.017,109430.0,109420.0,1.7944104]
[1758891696884,0.018,109430.0,109420.0,1.7944104]
[1758891697084,0.001,109430.0,109420.0,1.7944104]
[1758891697785,0.012,109430.0,109420.0,1.7944104]
[1758891698091,0.03517,109430.0,109420.0,0.9314904]
[1758891698393,0.1395386,109430.0,109420.0,1.85955941]
[1758891698580,0.1385386,109430.0,109420.0,0.62987941]
[1758891698783,0.1415386,109430.0,109420.0,0.62987941]
[1758891699490,0.05022,109430.0,109420.0,0.62987941]
[1758891699691,0.014,109430.0,109420.0,0.63587941]
[1758891699991,0.1053185,109430.0,109420.0,0.63587941]
[1758891700390,0.1415385,109430.0,109420.0,0.62987941]
[1758891701192,0.1415385,109430.0,109420.0,0.5646904]
[1758891702895,0.014,109430.0,109420.0,0.5706904]
[1758891703286,0.1053185,109430.0,109420.0,0.5706904]
[1758891704394,0.1053185,109430.0,109420.0,0.63587941]
[1758891704694,0.014,109430.0,109420.0,0.63587941]
[1758891705486,0.1053185,109430.0,109420.0,0.63587941]
[1758891706089,0.1284885,109430.0,109420.0,0.63587941]
[1758891706288,0.1415385,109430.0,109420.0,0.63587941]
[1758891707095,0.1415385,109430.0,109420.0,0.62987941]
[1758891710799,0.1415385,109430.0,109420.0,0.5646904]
[1758891711099,0.5023385,109430.0,109420.0,0.1125635]
[1758891711692,0.5023385,109430.0,109420.0,0.2038904]
[1758891711997,0.77944853,109430.0,109420.0,0.02116]
[1758891712199,0.1275469,109420.0,109410.0,0.08634901]
[1758891712401,0.40465693,109420.0,109410.0,0.08634901]
[1758891712694,0.40465693,109420.0,109400.0,0.44714901]
[1758891712695,0.1275552,109410.0,109400.0,0.44714901]
[1758891713092,0.1275552,109410.0,109400.0,0.53849261]
[1758891714593,0.43774469,109410.0,109400.0,0.53849261]
[1758891714994,0.44682728,109410.0,109400.0,0.53949261]
[1758891715195,0.44682728,109410.0,109400.0,0.4743036]
[1758891716303,0.44682728,109410.0,109400.0,0.44814901]
[1758891716505,0.44682728,109410.0,109400.0,0.38296]
[1758891716704,0.44682728,109410.0,109400.0,0.4743036]
[1758891717112,1.70926728,109410.0,109400.0,0.001]
[1758891717494,0.53663779,109410.0,109400.0,0.001]
[1758891717805,1.78416553,109410.0,109400.0,0.001]
[1758891718202,0.92168553,109410.0,109400.0,0.02116]
[1758891718406,1.78916553,109410.0,109400.0,0.02116]
[1758891719305,1.79016553,109410.0,109400.0,0.02116]
[1758891720801,0.1275636,109400.0,109390.0,0.44714901]
[1758891721009,0.43775309,109400.0,109390.0,0.3608]
[1758891721195,1.30015309,109400.0,109390.0,0.38196]
[1758891721401,1.30015309,109400.0,109390.0,0.02116]
[1758891721895,0.0913522,109390.0,109380.0,0.51734601]
[1758891722200,0.1275722,109390.0,109380.0,0.53850601]
[1758891722401,0.03622,109390.0,109380.0,0.53850601]
[1758891722995,0.0913522,109390.0,109380.0,0.54450601]
[1758891723200,0.1124922,109390.0,109380.0,0.54450601]
[1758891723401,0.1154922,109390.0,109380.0,0.54450601]
[1758891723806,0.1264922,109390.0,109380.0,0.54450601]
[1758891724007,0.1392722,109390.0,109380.0,0.54450601]
[1758891724505,0.4371028,109390.0,109380.0,0.84233661]
[1758891724708,0.4371028,109390.0,109380.0,0.473317]
[1758891725704,0.04792,109390.0,109380.0,0.86256781]
[1758891725904,0.3118306,109390.0,109380.0,0.86956781]
[1758891726309,0.014,109390.0,109380.0,1.26956781]
[1758891727009,0.014,109390.0,109380.0,2.49498742]
[1758891727310,0.014,109390.0,109380.0,2.42979841]
[1758891728107,1.30597031,109420.0,109410.0,0.1142855]
[1758891728300,0.14573971,109420.0,109410.0,0.1142855]
[1758891729312,0.17073971,109420.0,109410.0,0.4750855]
[1758891729509,0.17773971,109420.0,109410.0,0.56648064]
[1758891731306,0.14203971,109420.0,109410.0,0.56648064]
[1758891731511,0.05070701,109420.0,109410.0,0.57317064]
[1758891731708,0.032,109420.0,109410.0,0.57317064]
[1758891732309,1.01695791,109430.0,109420.0,0.1142773]
[1758891732509,0.14559364,109430.0,109420.0,0.4750773]
[1758891733012,0.14559364,109430.0,109420.0,0.47513679]
[1758891733314,0.14559364,109430.0,109420.0,0.56646409]
[1758891733509,0.15359364,109430.0,109420.0,0.56646409]
[1758891734209,0.008,109430.0,109420.0,1.28354774]
[1758891734805,0.008,109430.0,109420.0,1.29280075]
[1758891735205,0.1046008,109440.0,109430.0,0.1142691]
[1758891735414,0.1046008,109440.0,109430.0,0.4750691]
[1758891735714,0.0913108,109440.0,109430.0,0.4750691]
[1758891735913,0.0913108,109440.0,109430.0,0.56644754]
[1758891736616,0.0963108,109440.0,109430.0,0.56644754]
[1758891736809,0.0993108,109440.0,109430.0,0.56644754]
[1758891737516,0.1352508,109440.0,109430.0,0.56644754]
[1758891741213,0.1352508,109440.0,109430.0,0.47512844]
[1758891741521,0.1352508,109440.0,109430.0,0.56644744]
[1758891741715,0.1352508,109440.0,109430.0,0.20564744]
[1758891743116,0.1272594,109430.0,109420.0,0.4750737]
[1758891743618,0.1272594,109430.0,109420.0,0.56645214]
[1758891744208,0.03594,109430.0,109420.0,0.56645214]
[1758891744419,0.1272598,109430.0,109420.0,0.56645214]
[1758891744623,0.1272598,109430.0,109420.0,0.56645654]
[1758891745209,0.03794,109430.0,109420.0,0.56645654]
[1758891745815,0.002,109430.0,109420.0,1.28454019]
[1758891747719,0.0933197,109430.0,109420.0,0.97445654]
[1758891747912,0.1292597,109430.0,109420.0,0.56745654]
[1758891748108,0.1292597,109430.0,109420.0,1.42921654]
[1758891748611,0.42688372,109430.0,109420.0,1.72684056]
[1758891749022,0.42688372,109430.0,109420.0,1.42921654]
[1758891749207,0.42688372,109430.0,109420.0,1.72684056]
[1758891749412,0.42688372,109430.0,109420.0,0.86508056]
[1758891749612,0.1292597,109430.0,109420.0,0.86508056]
[1758891750016,0.1292597,109430.0,109420.0,0.56745654]
[1758891750222,0.1292597,109430.0,109420.0,0.86508056]
[1758891752725,0.42688372,109430.0,109420.0,0.86508056]
[1758891753620,0.42688372,109430.0,109420.0,0.56745654]
[1758891753822,0.42688372,109430.0,109420.0,0.56745644]
[1758891754428,0.50808182,109430.0,109420.0,0.56745644]
[1758891755319,0.50808182,109430.0,109420.0,0.47612844]
[1758891755721,0.86888182,109430.0,109420.0,0.02395]
[1758891756626,0.86888182,109430.0,109420.0,0.001]
[1758891756828,2.13040182,109430.0,109420.0,0.001]
[1758891758228,2.53085586,109430.0,109420.0,0.001]
[1758891758418,0.1051147,109400.0,109390.0,1.10917648]
[1758891758625,0.48393682,109400.0,109390.0,1.10917648]
[1758891759030,0.50649682,109400.0,109390.0,0.53887648]
[1758891759722,0.50649682,109400.0,109390.0,0.4737282]
[1758891759936,0.1276746,109400.0,109390.0,0.87455032]
[1758891760125,0.50649672,109400.0,109390.0,0.4957282]
[1758891760524,0.50649672,109400.0,109390.0,0.40438]
[1758891760833,0.50649672,109400.0,109390.0,0.40138]
[1758891761134,0.50649672,109400.0,109390.0,0.38938]
[1758891761330,0.50649672,109400.0,109390.0,0.02858]
[1758891761631,1.26729672,109400.0,109390.0,0.007]
[1758891761830,0.86729672,109400.0,109390.0,0.007]
[1758891762933,0.86929672,109400.0,109390.0,0.007]
[1758891763227,0.1051313,109380.0,109370.0,0.83098932]
[1758891763433,0.50651342,109380.0,109370.0,0.38238]
[1758891764533,0.50651342,109380.0,109370.0,0.38838]
[1758891764733,0.51574171,109380.0,109370.0,0.38838]
[1758891765534,0.51574171,109380.0,109370.0,0.4797496]
[1758891765734,0.99839959,109380.0,109370.0,0.4797496]
[1758891765935,1.37722171,109380.0,109370.0,0.4797496]
[1758891766233,1.36799342,109380.0,109370.0,0.4797496]
[1758891766634,1.36799342,109380.0,109370.0,0.85857172]
[1758891767443,0.89781,109380.0,109370.0,0.85857172]
[1758891767936,0.9891713,109380.0,109370.0,0.4797496]
[1758891768137,0.9891713,109380.0,109370.0,0.85857172]
[1758891768729,1.36799342,109380.0,109370.0,0.85857172]
[1758891770038,1.36799342,109380.0,109370.0,0.4797496]
[1758891770238,1.36799342,109380.0,109370.0,0.85857172]
[1758891770738,1.36799342,109380.0,109370.0,0.4797496]
[1758891770937,0.9891713,109380.0,109370.0,0.85857172]
[1758891771237,1.36799342,109380.0,109370.0,0.85857172]
[1758891771832,0.1276913,109380.0,109370.0,0.85857172]
[1758891772039,0.9891313,109380.0,109370.0,0.85857172]
[1758891772236,1.36795342,109380.0,109370.0,0.85857172]
[1758891774037,0.9891313,109380.0,109370.0,0.85857172]
[1758891774237,1.36795342,109380.0,109370.0,0.85857172]
[1758891774831,1.36795342,109380.0,109370.0,0.4797496]
[1758891775036,1.36795342,109380.0,109370.0,0.85857172]
[1758891776544,0.9891313,109380.0,109370.0,0.4797496]
[1758891778949,1.32613,109380.0,109370.0,0.38838]
[1758891779839,0.9891313,109380.0,109370.0,0.3668]
[1758891780244,1.32613,109380.0,109370.0,0.3668]
[1758891780445,1.32613,109380.0,109370.0,0.38838]
[1758891780949,0.9891313,109380.0,109370.0,0.4797491]
[1758891782148,0.1276913,109380.0,109370.0,0.4797491]
[1758891782346,0.9889313,109380.0,109370.0,0.4797491]
[1758891782758,0.1276913,109380.0,109370.0,0.4797491]
[1758891782959,0.9889313,109380.0,109370.0,0.4797491]
[1758891783558,0.9889313,109380.0,109370.0,0.38838]
[1758891783765,1.72593,109380.0,109370.0,0.3668]
[1758891784063,1.72593,109380.0,109370.0,0.38919]
[1758891784657,0.86469,109380.0,109370.0,0.38919]
[1758891784859,1.72589,109380.0,109370.0,0.38919]
[1758891786764,1.3888913,109380.0,109370.0,0.38919]
[1758891786965,1.72589,109380.0,109370.0,0.38919]
[1758891787158,1.72589,109380.0,109370.0,0.4805593]
[1758891787360,1.3888513,109380.0,109370.0,0.4805593]
[1758891787962,1.3888513,109380.0,109370.0,0.38919]
[1758891788464,1.72585,109380.0,109370.0,0.3668]
[1758891788662,1.72581,109380.0,109370.0,0.3668]
[1758891791365,1.72577,109380.0,109370.0,0.38782]
[1758891792960,0.86469,109380.0,109370.0,0.4791893]
[1758891793155,0.46469,109380.0,109370.0,0.4791893]
[1758891793361,0.9887313,109380.0,109370.0,0.4791893]
[1758891793661,0.9886913,109380.0,109370.0,0.4791893]
[1758891796266,0.9886913,109380.0,109370.0,0.38782]
[1758891796470,1.32569,109380.0,109370.0,0.3668]
[1758891797558,1.72569,109380.0,109370.0,0.3668]
[1758891797758,1.74739724,109380.0,109370.0,0.3668]
[1758891799058,1.74727724,109380.0,109370.0,0.3668]
[1758891799265,1.41027854,109380.0,109370.0,0.3668]
[1758891799465,1.74727724,109380.0,109370.0,0.3668]
[1758891799672,1.75727724,109380.0,109370.0,0.3608]
[1758891800468,1.75727724,109380.0,109370.0,0.3258]
[1758891800968,1.76027724,109380.0,109370.0,0.3258]
[1758891801368,0.89939724,109380.0,109370.0,0.3258]
[1758891801567,1.76023724,109380.0,109370.0,0.3258]
[1758891810871,0.89939724,109380.0,109370.0,0.3258]
[1758891811174,1.75007724,109380.0,109370.0,0.3258]
[1758891811370,1.76907724,109380.0,109370.0,0.3258]
[1758891811577,1.77507724,109380.0,109370.0,0.3258]
[1758891812278,1.43807854,109380.0,109370.0,0.3258]
[1758891812480,1.77507724,109380.0,109370.0,0.3258]
[1758891812977,0.91439724,109380.0,109370.0,0.3258]
[1758891813277,1.77499724,109380.0,109370.0,0.3258]
[1758891819269,1.77499724,109380.0,109370.0,0.2218414]
[1758891819472,1.37499724,109380.0,109370.0,0.0028258]
[1758891819671,1.37499724,109380.0,109370.0,1e-07]
[1758891820477,1.37479724,109380.0,109370.0,1e-07]
[1758891821178,1.37475724,109380.0,109370.0,1e-07]
[1758891821572,0.51439724,109380.0,109370.0,1e-07]
[1758891821780,0.51439724,109380.0,109370.0,0.0217801]
[1758891822079,1.37475724,109380.0,109370.0,0.0217801]
[1758891823586,0.51439724,109380.0,109370.0,0.0217801]
[1758891823773,1.37471724,109380.0,109370.0,0.0217801]
[1758891825468,0.16362854,109380.0,109370.0,0.5260306]
[1758891825670,1.0021613,109380.0,109370.0,0.5260306]
[1758891825872,1.0021613,109380.0,109370.0,0.4346701]
[1758891827177,1.0021613,109380.0,109370.0,0.5260307]
[1758891827680,1.0021213,109380.0,109370.0,0.5260307]
[1758891828182,1.0021213,109380.0,109370.0,0.4346701]
[1758891828382,1.33912,109380.0,109370.0,0.4346701]
[1758891828581,1.0021213,109380.0,109370.0,0.5260306]
[1758891831282,0.05056,109380.0,109370.0,0.5260306]
[1758891831482,0.9106,109380.0,109370.0,0.8630293]
[1758891832677,1.0019518,109380.0,109370.0,0.8630293]
[1758891832977,1.0019518,109380.0,109370.0,0.59117888]
[1758891833180,1.0018718,109380.0,109370.0,0.59117888]
[1758891833976,0.9818718,109380.0,109370.0,0.59117888]
[1758891834282,0.981872,109380.0,109370.0,0.5260306]
[1758891834481,0.002,109380.0,109370.0,0.95445787]
[1758891834782,0.002,109380.0,109370.0,0.96376586]
[1758891834783,0.86392,109380.0,109370.0,0.96376586]
[1758891835172,0.004,109380.0,109370.0,0.96376586]
[1758891835379,0.86388,109380.0,109370.0,0.96376586]
[1758891835574,0.004,109380.0,109370.0,0.96376586]
[1758891835779,0.0953518,109380.0,109370.0,0.96376586]
[1758891836783,0.0953518,109380.0,109370.0,0.95445787]
[1758891837490,0.1178418,109380.0,109370.0,0.95445787]
[1758891838583,0.004,109380.0,109370.0,1.00553372]
[1758891838984,0.0953518,109380.0,109370.0,1.00553372]
[1758891839184,0.0953518,109380.0,109370.0,1.06168419]
[1758891841290,0.0953518,109380.0,109370.0,0.99653591]
[1758891841480,0.1178418,109380.0,109370.0,0.99653591]
[1758891842088,0.1178418,109380.0,109370.0,0.61745917]
[1758891842292,0.1178418,109380.0,109370.0,0.99653591]
[1758891842293,0.49691854,109380.0,109370.0,0.99653591]
[1758891844596,0.49691854,109380.0,109370.0,0.1260329]
[1758891844895,0.50866854,109380.0,109370.0,0.50510914]
[1758891845096,0.50866854,109380.0,109370.0,0.0346701]
[1758891845487,0.49691854,109380.0,109370.0,0.0346701]
[1758891845689,0.49691854,109380.0,109370.0,0.41374684]
[1758891845998,0.49691854,109380.0,109370.0,0.50510914]
[1758891846694,1.35639854,109380.0,109370.0,0.50510914]
[1758891847295,0.9773218,109380.0,109370.0,0.50510914]
[1758891847491,1.35639854,109380.0,109370.0,0.50510914]
[1758891847796,0.88589,109380.0,109370.0,0.50510914]
[1758891847991,0.02649,109380.0,109370.0,0.50510914]
[1758891848196,0.88585,109380.0,109370.0,0.50510914]
[1758891848598,0.004,109380.0,109370.0,0.50510914]
[1758891848895,0.86336,109380.0,109370.0,0.50510914]
[1758891849896,0.004,109380.0,109370.0,1.44076273]
[1758891850097,0.3608,109390.0,109380.0,0.0913528]
[1758891850396,0.3608,109390.0,109380.0,0.88421628]
[1758891850699,0.3608,109390.0,109380.0,1.83492485]
[1758891851598,0.3648,109390.0,109380.0,1.83492485]
[1758891851897,0.3728,109390.0,109380.0,1.83492485]
[1758891852399,0.3728,109390.0,109380.0,2.30011514]
[1758891852595,0.3728,109390.0,109380.0,2.23492485]
[1758891854402,0.3378,109390.0,109380.0,2.30009741]
[1758891854698,0.3378,109390.0,109380.0,2.23492485]
[1758891855295,0.2328,109390.0,109380.0,2.61400159]
[1758891855589,0.3258,109400.0,109390.0,0.0913445]
[1758891855794,0.30184958,109400.0,109390.0,1.70853798]
[1758891856098,0.30184958,109400.0,109390.0,2.10853798]
[1758891856299,0.30184958,109400.0,109390.0,2.19994983]
[1758891856594,0.01297,109410.0,109400.0,0.0913361]
[1758891856799,0.01297,109410.0,109400.0,1.24948958]
[1758891857394,0.01297,109410.0,109400.0,2.26492798]
[1758891857597,0.01297,109410.0,109400.0,2.19985308]
[1758891857800,0.01297,109410.0,109400.0,2.26492692]
[1758891858096,0.01254596,109420.0,109410.0,0.0913278]
[1758891858292,6e-08,109420.0,109410.0,1.38642059]
[1758891858497,0.01274,109430.0,109410.0,1.32135134]
[1758891858699,0.01274,109430.0,109420.0,1.39429257]
[1758891859095,0.01274,109430.0,109420.0,2.17336931]
[1758891859399,0.01297,109440.0,109430.0,0.0913111]
[1758891859698,0.01297,109440.0,109430.0,0.91441206]
[1758891859999,0.01297,109440.0,109430.0,1.00579885]
[1758891861204,0.01297,109440.0,109430.0,0.94085137]
[1758891862098,0.01297,109440.0,109430.0,1.79953137]
[1758891862299,0.01697,109440.0,109430.0,1.79953137]
[1758891862495,0.02297,109440.0,109430.0,1.79953137]
[1758891862702,0.02297,109440.0,109430.0,0.56177463]
[1758891862900,0.04476,109440.0,109430.0,1.42041463]
[1758891863100,0.02297,109440.0,109430.0,1.42041463]
[1758891866209,0.04476,109440.0,109430.0,1.42025463]
[1758891866609,0.04476,109440.0,109430.0,0.18269789]
[1758891866809,0.04476,109440.0,109430.0,1.42017463]
[1758891869711,0.1360629,109440.0,109430.0,1.42017463]
[1758891869908,0.1360629,109440.0,109430.0,1.04109789]
[1758891870213,0.1360629,109440.0,109430.0,1.42017463]
[1758891870214,0.04476,109440.0,109430.0,1.42017463]
[1758891871603,0.03476,109440.0,109430.0,1.42017463]
[1758891871801,0.03776,109440.0,109430.0,1.42017463]
[1758891874714,0.03776,109440.0,109430.0,0.47046353]
[1758891874912,0.1270463,109400.0,109390.0,0.15613506]
[1758891875215,0.127063,109380.0,109370.0,1e-07]
[1758891875417,0.50613974,109380.0,109370.0,1e-07]
[1758891875604,0.50613974,109380.0,109370.0,0.09137854]
[1758891875808,0.90613974,109380.0,109370.0,0.09137854]
[1758891876317,0.90613974,109380.0,109370.0,1e-07]
[1758891876318,1.28521648,109380.0,109370.0,1e-07]
[1758891876710,1.77723422,109380.0,109370.0,1e-07]
[1758891877217,0.92831061,109380.0,109370.0,1e-07]
[1758891877610,1.78639061,109380.0,109370.0,1e-07]
[1758891878412,1.78639061,109380.0,109370.0,0.0060001]
[1758891879012,1.78643061,109380.0,109370.0,0.0060001]
[1758891879419,1.38643061,109380.0,109370.0,0.0060001]
[1758891883119,1.38659061,109380.0,109370.0,0.0060001]
[1758891883815,1.78659061,109380.0,109370.0,1e-07]
[1758891884021,0.1270713,109370.0,109360.0,0.3608]
[1758891884220,0.52220252,109370.0,109360.0,0.3608]
[1758891884420,0.92220252,109370.0,109360.0,0.3608]
[1758891884924,1.78052252,109370.0,109360.0,0.3608]
[1758891885624,1.78052252,109370.0,109360.0,0.3728]
[1758891890324,1.78352252,109370.0,109360.0,0.3728]
[1758891890626,0.52520252,109370.0,109360.0,0.3608]
[1758891890814,0.1350713,109370.0,109360.0,0.4521696]
[1758891891017,0.9935513,109370.0,109360.0,0.4521696]
[1758891893125,0.9935513,109370.0,109360.0,0.8521694]
[1758891894030,0.1350713,109370.0,109360.0,0.8521694]
[1758891894232,0.9616713,109370.0,109360.0,0.8521694]
[1758891896031,0.90223,109370.0,109360.0,0.8521694]
[1758891896426,0.9935913,109370.0,109360.0,0.8521694]
[1758891897531,0.1350713,109370.0,109360.0,0.8521694]
[1758891897733,0.9935913,109370.0,109360.0,0.8521694]
[1758891898236,0.1350713,109370.0,109360.0,0.8521694]
[1758891898426,0.04371,109370.0,109360.0,0.8521694]
[1758891898621,0.9935911,109370.0,109360.0,0.8521694]
[1758891899132,0.9935911,109370.0,109360.0,0.8521696]
[1758891899530,0.02147,109370.0,109360.0,1.33873775]
[1758891900634,0.02147,109370.0,109360.0,0.94360653]
[1758891901636,0.02147,109370.0,109360.0,1.80208653]
[1758891903923,0.02147,109370.0,109360.0,2.15510809]
[1758891904337,0.02147,109370.0,109360.0,2.21985978]
[1758891904931,0.01347,109380.0,109370.0,0.0913611]
[1758891905131,0.01347,109390.0,109380.0,0.0913527]
[1758891905333,0.01347,109390.0,109380.0,1.36798952]
[1758891905532,0.01347,109390.0,109380.0,1.85941809]
[1758891905734,0.01347,109390.0,109380.0,1.00097809]
[1758891905934,0.01347,109390.0,109380.0,1.50635653]
[1758891906244,0.01347,109390.0,109380.0,1.86846205]
[1758891906432,0.01347,109400.0,109390.0,0.0913443]
[1758891907140,0.01347,109400.0,109390.0,0.18276451]
[1758891907332,0.03634,109400.0,109390.0,0.18276451]
[1758891907738,0.03734,109400.0,109390.0,0.18276451]
[1758891909043,0.01447,109400.0,109390.0,0.18276451]
[1758891910139,0.01647,109400.0,109390.0,0.18276451]
[1758891911948,0.130676,109400.0,109390.0,0.18276451]
[1758891914250,0.1306763,109400.0,109390.0,0.18276451]